bitfinex/quotes_ETHUSD_20220311
["timestamp","ask_amount","ask_price","bid_price","bid_amount"]
[1646979539305,2.38273376,2569.3,2568.2,0.09057158]
[1646979539508,1.99303376,2569.3,2568.2,0.09057158]
[1646979539706,0.003815,2569.2,2568.2,0.09057158]
[1646979540708,0.00381614,2569.2,2568.2,0.09057158]
[1646979541104,0.00244438,2569.2,2568.2,0.09057158]
[1646979541708,2.38273376,2569.3,2568.2,0.97307]
[1646979541910,1.99303376,2569.3,2568.3,1.07513638]
[1646979542113,1.99303376,2569.3,2568.4,0.07419148]
[1646979543056,2.17588,2569.4,2568.5,0.85185516]
[1646979543259,2.17588,2569.4,2568.6,0.08700361]
[1646979543658,2.17588,2569.4,2568.7,0.9928]
[1646979543858,2.17588,2569.4,2568.8,0.08558498]
[1646979544458,0.00404351,2569.2,2568.8,0.08558498]
[1646979545260,2.17588,2569.4,2568.8,0.08558498]
[1646979545461,0.00404349,2569.2,2568.8,0.08558498]
[1646979546503,1.94587,2569.3,2568.8,0.08558498]
[1646979546708,0.00404349,2569.2,2568.8,0.08558498]
[1646979547712,1.94587,2569.3,2568.8,0.08558498]
[1646979547912,0.00404349,2569.2,2568.8,0.08558498]
[1646979548514,0.00404349,2569.2,2568.8,1.05842498]
[1646979548714,0.00404349,2569.2,2568.9,1.0758333]
[1646979548913,0.97308,2569.4,2569.0,0.07401451]
[1646979549112,1.94562,2569.6,2569.0,0.07401451]
[1646979549314,0.00392219,2569.2,2568.9,0.08231935]
[1646979549713,0.00392219,2569.2,2569.0,1.03577065]
[1646979549970,0.00392219,2569.2,2569.1,0.07356615]
[1646979550168,1.94562,2569.6,2569.1,0.07356615]
[1646979550364,0.00392219,2569.2,2569.1,0.07356615]
[1646979551269,0.97282,2569.3,2569.1,0.07356615]
[1646979551472,1.94562,2569.6,2569.1,0.07356615]
[1646979551673,1.1673,2570.3,2569.1,4.86242]
[1646979551674,0.00392216,2569.3,2569.1,4.86242]
[1646979551870,0.00392216,2569.3,2569.2,16.99552015]
[1646979552075,0.00392216,2569.3,2569.2,18.15552015]
[1646979552272,0.00392216,2569.3,2569.2,19.15152015]
[1646979552475,0.00392216,2569.3,2569.2,19.14912015]
[1646979552671,1.2226,2570.6,2569.3,0.0705199]
[1646979552873,1.2226,2570.6,2569.6,0.97238]
[1646979552874,0.01516632,2569.8,2569.6,0.97238]
[1646979553071,0.01516632,2569.8,2569.7,0.07370168]
[1646979553706,1.2226,2570.6,2569.7,0.07370168]
[1646979553905,0.04169426,2570.5,2569.7,0.07370168]
[1646979554104,0.00379196,2569.9,2569.7,0.07370168]
[1646979554504,0.00379196,2569.9,2569.4,0.08519006]
[1646979554907,0.97268,2570.1,2569.4,0.08519006]
[1646979555109,0.00379199,2569.8,2569.4,1.0572934]
[1646979555304,0.00379199,2569.8,2569.4,0.08519006]
[1646979556105,0.97268,2570.1,2569.4,0.08519006]
[1646979556505,0.00382125,2569.7,2569.4,0.08519006]
[1646979557381,0.97268,2570.1,2569.4,0.08519006]
[1646979557776,0.00382127,2569.7,2569.4,0.08519006]
[1646979558373,0.00382127,2569.7,2569.5,0.97258]
[1646979558572,0.97258,2570.3,2569.6,0.0892943]
[1646979558772,0.00382127,2569.7,2569.6,0.0892943]
[1646979559773,0.97258,2570.3,2569.6,0.0892943]
[1646979559974,0.00382123,2569.8,2569.6,0.0892943]
[1646979560178,0.05995415,2569.7,2569.3,1.1971]
[1646979560378,0.00382123,2569.8,2569.0,0.04]
[1646979560576,0.00382123,2569.8,2569.0,1.2371]
[1646979560778,0.05740871,2569.7,2569.0,1.1971]
[1646979561405,0.00381475,2569.5,2569.0,1.1971]
[1646979561606,0.05473625,2569.5,2569.0,1.1971]
[1646979561805,0.05473625,2569.5,2568.9,0.96363596]
[1646979562307,0.0509215,2569.5,2568.9,0.96363596]
[1646979562508,0.00381483,2569.3,2568.9,0.96363596]
[1646979563408,0.0509215,2569.5,2568.9,0.96363596]
[1646979563610,0.00347883,2569.2,2568.9,0.96363596]
[1646979564862,0.00347885,2569.2,2568.9,0.96363596]
[1646979565858,0.0509215,2569.5,2568.9,0.96363596]
[1646979566059,0.00347885,2569.2,2568.9,0.96363596]
[1646979567064,0.0509215,2569.5,2568.9,0.96363596]
[1646979567459,0.00349672,2569.2,2568.9,0.96363596]
[1646979568261,0.0509215,2569.5,2568.9,0.96363596]
[1646979568458,0.00349639,2569.2,2568.9,0.96363596]
[1646979569306,0.00349639,2569.2,2568.7,3.9675]
[1646979569507,0.0509215,2569.5,2568.7,3.9675]
[1646979569710,0.00349639,2569.2,2568.7,1.225]
[1646979570110,0.00349639,2569.2,2568.7,1.22357233]
[1646979570308,0.00349639,2569.2,2568.9,0.81756404]
[1646979570710,0.0509215,2569.5,2568.9,0.81756404]
[1646979570914,0.0034952,2569.2,2568.7,1.22357233]
[1646979571910,0.05409858,2569.4,2568.7,1.22357233]
[1646979572112,0.00349521,2569.2,2568.7,1.22357233]
[1646979572362,0.00349521,2569.2,2568.7,2.21715766]
[1646979573160,0.05409858,2569.4,2568.7,2.21715766]
[1646979573360,0.00349521,2569.2,2568.7,2.21715766]
[1646979574259,0.05409858,2569.4,2568.7,5.71715766]
[1646979574660,0.05409858,2569.4,2569.1,0.8329364]
[1646979574661,0.00349757,2569.2,2569.1,0.8329364]
[1646979575261,0.00349757,2569.2,2569.1,1.8257364]
[1646979575463,0.05378936,2569.6,2569.1,1.8257364]
[1646979575863,0.0034976,2569.3,2569.1,1.8257364]
[1646979576105,0.0034976,2569.3,2569.2,4.40628285]
[1646979576803,0.97274,2569.7,2569.2,0.84271415]
[1646979577003,0.00349756,2569.4,2569.2,0.84271415]
[1646979578008,0.97279,2569.5,2569.2,0.84271415]
[1646979578209,0.00349508,2569.4,2569.2,0.84271415]
[1646979578711,0.00349508,2569.4,2568.9,1.94535]
[1646979578908,0.05611896,2569.4,2568.9,1.94535]
[1646979579107,0.05262388,2569.4,2568.9,1.94535]
[1646979579510,0.00349514,2569.3,2568.9,1.94535]
[1646979579713,0.00349514,2569.3,2569.0,1.04857599]
[1646979580353,0.05262388,2569.4,2569.0,1.04857599]
[1646979580552,0.00349514,2569.3,2569.0,1.04857599]
[1646979581154,0.00349514,2569.3,2569.0,4.54857599]
[1646979581554,0.06198558,2569.6,2569.0,4.54857599]
[1646979581855,0.0034953,2569.3,2569.0,4.54857599]
[1646979582057,0.0034953,2569.3,2569.0,1.04857599]
[1646979582459,0.06101426,2569.3,2569.0,1.04857599]
[1646979582759,0.05751896,2569.3,2569.0,1.04857599]
[1646979582957,0.0034953,2569.3,2569.0,1.04857599]
[1646979584110,0.06308606,2569.4,2568.8,4.6873]
[1646979584304,0.0034953,2569.3,2568.8,1.1873]
[1646979584505,0.0034953,2569.3,2568.8,0.1945]
[1646979585107,0.06308606,2569.4,2568.8,0.1945]
[1646979585405,0.00349533,2569.2,2568.8,1.26098154]
[1646979586408,0.06308606,2569.4,2568.8,1.26098154]
[1646979586610,0.00349531,2569.2,2568.8,1.26098154]
[1646979587461,0.05428464,2569.3,2568.8,1.26098154]
[1646979587864,0.00349531,2569.2,2568.8,1.26098154]
[1646979588665,0.05428464,2569.3,2568.8,1.06648154]
[1646979589067,0.00349532,2569.2,2568.8,1.06648154]
[1646979589667,0.00349532,2569.2,2568.7,1.22357233]
[1646979589867,0.05148292,2569.2,2568.4,3.13305]
[1646979590067,0.05148292,2569.2,2568.4,4.13305]
[1646979590267,0.05148292,2569.2,2568.6,0.00336981]
[1646979590268,0.05497824,2569.2,2568.6,0.00336981]
[1646979590669,0.05411938,2569.2,2568.6,0.00336981]
[1646979591109,0.05411938,2569.2,2568.4,4.13305]
[1646979591110,0.05062406,2569.2,2568.4,4.13305]
[1646979591310,0.05062406,2569.2,2568.7,1.01350983]
[1646979591515,0.05411928,2569.2,2568.7,1.01350983]
[1646979592415,0.05062406,2569.2,2568.7,1.01350983]
[1646979592614,0.05411933,2569.2,2568.7,1.01350983]
[1646979593615,0.05062406,2569.2,2568.7,1.01350983]
[1646979593815,0.05411933,2569.2,2568.7,1.01350983]
[1646979594865,0.05062406,2569.2,2568.7,1.01350983]
[1646979595056,0.05411933,2569.2,2568.7,1.01350983]
[1646979595865,0.05062406,2569.2,2568.7,1.01350983]
[1646979596266,0.05411933,2569.2,2568.7,1.01350983]
[1646979596565,0.05411933,2569.2,2568.6,0.00336981]
[1646979597068,0.05411933,2569.2,2568.5,0.9729336]
[1646979597266,0.05062406,2569.2,2568.5,0.9729336]
[1646979597468,0.05411928,2569.2,2568.6,0.00336981]
[1646979598067,0.05411928,2569.2,2568.6,1.08690044]
[1646979598268,0.05062406,2569.2,2568.6,1.08353063]
[1646979598468,0.05062406,2569.2,2568.6,2.05643063]
[1646979598705,0.05062406,2569.2,2568.6,2.05980044]
[1646979598706,0.00349522,2569.2,2568.6,2.05980044]
[1646979599506,0.97287,2569.4,2568.7,0.9728534]
[1646979599710,4.7216,2569.6,2568.7,0.9728534]
[1646979599906,0.00349522,2569.2,2568.7,0.9728534]
[1646979600714,0.05769526,2569.5,2568.7,0.9728534]
[1646979601112,0.00349527,2569.2,2568.7,0.9728534]
[1646979601912,0.05769526,2569.5,2568.7,1.1673534]
[1646979602372,0.00349527,2569.2,2568.8,0.9728472]
[1646979602563,0.00349527,2569.2,2568.8,0.97281]
[1646979602762,0.00349527,2569.2,2568.9,0.1945]
[1646979603162,0.05273866,2569.8,2568.9,0.1945]
[1646979603364,0.05273866,2569.8,2569.1,0.81774309]
[1646979603564,0.00349534,2569.2,2569.1,0.81774309]
[1646979604563,0.05507788,2569.7,2569.1,0.81774309]
[1646979604564,0.00248547,2569.3,2569.1,0.81774309]
[1646979604968,0.00248547,2569.3,2568.9,0.1945]
[1646979605165,0.00248547,2569.3,2568.8,1.24179921]
[1646979605364,0.00248547,2569.3,2568.8,1.54179921]
[1646979605564,0.05920642,2569.6,2568.8,1.54179921]
[1646979605565,0.05920642,2569.6,2568.8,1.4673371]
[1646979605965,0.00248547,2569.2,2568.9,1.06596776]
[1646979606810,0.05920642,2569.6,2568.9,1.06596776]
[1646979607110,0.00251942,2569.2,2568.8,0.9728371]
[1646979607311,0.00251942,2569.2,2568.7,0.1945]
[1646979607517,0.06382277,2569.1,2568.7,0.1945]
[1646979608312,0.00375744,2569.2,2568.7,0.1945]
[1646979609213,0.06451579,2569.4,2568.7,0.1945]
[1646979609214,0.04948754,2569.4,2568.7,0.1945]
[1646979609414,0.00375749,2569.2,2568.7,0.1945]
[1646979609869,0.00375749,2569.2,2568.6,2.19910459]
[1646979610061,0.00375749,2569.2,2568.6,1.22615829]
[1646979610258,0.06411775,2569.2,2568.6,0.00375829]
[1646979610459,0.06411775,2569.2,2568.3,0.29]
[1646979610460,0.97321,2569.1,2568.3,0.29]
[1646979610657,0.06191629,2569.0,2568.3,0.04]
[1646979610858,0.0575939,2568.9,2568.6,0.00371445]
[1646979611657,0.0575939,2568.9,2568.3,0.04]
[1646979611860,0.0575939,2568.9,2568.6,0.0037143]
[1646979612063,1.0308839,2568.9,2568.6,0.0037143]
[1646979612259,0.05860017,2568.7,2568.6,0.0037143]
[1646979612766,0.05860017,2568.7,2568.3,0.04]
[1646979612962,0.05860017,2568.7,2568.5,0.00359175]
[1646979613822,0.04940677,2568.6,2568.5,0.00359175]
[1646979614122,0.04940677,2568.6,2568.3,0.04]
[1646979614320,0.04940677,2568.6,2568.5,0.00359465]
[1646979615221,0.04940677,2568.6,2568.3,0.04]
[1646979615222,0.04833318,2568.6,2568.3,0.04]
[1646979615424,0.04833318,2568.6,2568.4,0.00359467]
[1646979616021,0.9734,2568.6,2568.4,0.00359467]
[1646979616223,3.5620924,2568.5,2568.4,0.00359467]
[1646979616421,3.5620924,2568.5,2568.3,0.04]
[1646979616422,3.5,2568.5,2568.3,0.04]
[1646979616621,0.9735,2568.5,2568.3,0.04]
[1646979616821,3.5,2568.4,2568.3,0.04]
[1646979617220,0.05596117,2568.6,2568.3,0.04]
[1646979617461,0.9735,2568.4,2568.3,0.04]
[1646979617664,4.4735,2568.4,2568.3,0.04]
[1646979617863,4.4735,2568.4,2568.3,0.04330808]
[1646979618763,4.4735,2568.4,2568.3,0.04]
[1646979619364,3.5,2568.4,2568.3,0.04]
[1646979619563,0.97349,2568.5,2568.3,0.04]
[1646979619763,0.05736678,2568.4,2568.3,0.04]
[1646979620364,0.05736678,2568.4,2568.3,0.04338704]
[1646979621112,0.05736678,2568.4,2568.3,0.04]
[1646979639958,0.05624096,2568.4,2568.3,0.04]
[1646979644516,1.94689,2568.5,2568.3,0.04]
[1646979645520,1.94689,2568.5,2568.3,0.04337255]
[1646979646523,1.94689,2568.5,2568.3,0.04]
[1646979646723,1.94689,2568.5,2568.3,0.04337255]
[1646979646923,0.05292179,2568.4,2568.3,0.04337255]
[1646979647565,0.05292179,2568.4,2568.3,0.04]
[1646979654715,1.94699,2568.5,2568.3,0.04]
[1646979656465,1.94699,2568.5,2568.3,0.04337255]
[1646979657065,0.97349,2568.6,2568.3,0.04337255]
[1646979657269,8.06036257,2568.9,2568.3,0.04]
[1646979657467,8.06036257,2568.9,2568.3,0.04337255]
[1646979658471,8.0063,2568.9,2568.3,0.04]
[1646979658716,8.0063,2568.9,2568.5,0.00337229]
[1646979659417,1.1281,2568.9,2568.5,0.00337229]
[1646979659719,1.1281,2568.9,2568.3,0.11349704]
[1646979659917,1.1281,2568.9,2568.6,0.00337216]
[1646979660117,1.12723395,2568.9,2568.6,0.00337216]
[1646979660316,2.10034395,2568.9,2568.6,0.00337216]
[1646979660921,2.10034395,2568.9,2568.3,0.11349704]
[1646979661121,2.10034395,2568.9,2568.6,0.00337211]
[1646979662023,2.10034395,2568.9,2568.3,0.04]
[1646979662227,2.10034395,2568.9,2568.6,0.00337211]
[1646979663266,2.10034395,2568.9,2568.3,0.04]
[1646979663564,2.10034395,2568.9,2568.6,0.00337211]
[1646979664564,2.10034395,2568.9,2568.3,0.04]
[1646979664766,2.10034395,2568.9,2568.6,0.00337211]
[1646979665566,2.10034395,2568.9,2568.3,0.04]
[1646979665766,2.10034395,2568.9,2568.3,0.11486519]
[1646979665967,2.10034395,2568.9,2568.6,0.00337211]
[1646979666818,2.10034395,2568.9,2568.3,0.11486519]
[1646979667218,2.10034395,2568.9,2568.6,0.00337211]
[1646979667620,2.15970819,2568.9,2568.6,0.00337211]
[1646979668020,2.15970819,2568.9,2568.3,0.11486519]
[1646979668318,2.15970819,2568.9,2568.6,0.00337211]
[1646979669321,2.15970819,2568.9,2568.3,0.04]
[1646979669523,2.15970819,2568.9,2568.6,0.00337211]
[1646979670667,2.15970819,2568.9,2568.2,0.1945]
[1646979670871,2.15970819,2568.9,2568.6,0.00337211]
[1646979671273,1.94554981,2568.9,2568.6,0.00337211]
[1646979671674,1.94554981,2568.9,2568.2,0.1945]
[1646979671873,1.94554981,2568.9,2568.6,0.00337211]
[1646979672875,1.94554981,2568.9,2568.2,0.1945]
[1646979673075,1.94554981,2568.9,2568.6,0.00337211]
[1646979674116,1.94554981,2568.9,2568.2,0.1945]
[1646979674315,1.94554981,2568.9,2568.6,0.00337211]
[1646979675317,1.94554981,2568.9,2568.2,0.1945]
[1646979675516,1.94554981,2568.9,2568.6,0.00337211]
[1646979676519,1.94554981,2568.9,2568.2,0.1945]
[1646979676718,1.94554981,2568.9,2568.6,0.00337211]
[1646979676919,0.81831586,2568.9,2568.6,0.00337211]
[1646979677119,0.9765558,2569.2,2568.6,0.00337211]
[1646979677770,0.97306,2569.2,2568.4,0.07513493]
[1646979677970,0.97655594,2569.2,2568.6,0.00337211]
[1646979678971,0.97306,2569.2,2568.4,1.04811493]
[1646979679171,0.97655594,2569.2,2568.6,0.00337211]
[1646979679371,0.97655594,2569.2,2568.6,0.07305781]
[1646979680071,0.97306,2569.2,2568.6,0.0696857]
[1646979680271,0.97655594,2569.2,2568.6,0.07305781]
[1646979681309,0.97306,2569.2,2568.6,0.0696857]
[1646979681511,0.97655594,2569.2,2568.6,0.07305781]
[1646979682415,0.97306,2569.2,2568.6,0.0696857]
[1646979682813,0.97655593,2569.2,2568.6,0.07305781]
[1646979683514,0.97655593,2569.2,2568.6,0.00337211]
[1646979683515,3.5,2569.1,2568.6,0.00337211]
[1646979683813,3.5,2569.1,2568.4,0.59687024]
[1646979683814,1.03621797,2569.0,2568.4,0.59687024]
[1646979684014,0.05719924,2568.9,2568.4,0.59687024]
[1646979684413,0.05635039,2568.9,2568.4,0.59687024]
[1646979685067,0.05635039,2568.9,2568.5,0.00337575]
[1646979685564,1.02964039,2568.9,2568.5,0.00337575]
[1646979685966,1.02964039,2568.9,2568.4,0.59687024]
[1646979686365,1.02964039,2568.9,2568.6,0.00337568]
[1646979686567,4.53380874,2568.8,2568.6,0.00337568]
[1646979686773,1.03444716,2568.7,2568.6,0.00337568]
[1646979687167,1.03444716,2568.7,2568.2,0.1945]
[1646979687372,0.06249847,2568.6,2568.2,0.1945]
[1646979687578,1.03585847,2568.6,2568.5,0.00337575]
[1646979687775,0.97336,2568.6,2568.5,0.00337575]
[1646979688611,0.97336,2568.6,2568.2,0.1945]
[1646979688812,0.97336,2568.6,2568.4,0.00364094]
[1646979689713,0.97336,2568.6,2568.2,0.1945]
[1646979689913,0.97336,2568.6,2568.4,0.00356684]
[1646979690920,0.97336,2568.6,2568.2,0.1945]
[1646979691120,0.97336,2568.6,2568.4,0.00356684]
[1646979692124,0.00151591,2568.4,2568.2,0.2345]
[1646979693567,0.00151591,2568.4,2568.2,0.23782412]
[1646979694668,0.00151591,2568.4,2568.2,0.2345]
[1646979694869,0.00151591,2568.4,2568.2,0.23782412]
[1646979695668,0.00151591,2568.4,2568.2,0.2345]
[1646979695870,0.00151591,2568.4,2568.2,0.23788714]
[1646979696919,0.00151591,2568.4,2568.2,0.2345]
[1646979697117,0.00151591,2568.4,2568.2,0.23788714]
[1646979698122,0.00151591,2568.4,2568.2,0.2345]
[1646979698321,0.00151591,2568.4,2568.2,0.23788714]
[1646979699021,0.00151591,2568.4,2568.2,0.81503934]
[1646979699224,0.00151591,2568.4,2568.2,0.8116522]
[1646979699622,0.00151591,2568.4,2568.2,0.81502516]
[1646979700468,0.00151591,2568.4,2568.2,0.8116522]
[1646979700862,0.00151591,2568.4,2568.2,0.81502516]
[1646979701661,0.00151591,2568.4,2568.2,0.6171522]
[1646979701863,0.00151591,2568.4,2568.2,0.62052516]
[1646979702568,0.00151591,2568.4,2568.3,0.04]
[1646979707474,0.00057768,2568.4,2568.3,0.04]
[1646979714873,0.15945146,2568.4,2568.3,0.04]
[1646979716667,0.21909602,2568.4,2568.3,0.04]
[1646979723272,0.06909602,2568.4,2568.3,0.04]
[1646979725877,0.53109602,2568.4,2568.3,0.04]
[1646979727726,0.77145146,2568.4,2568.3,0.04]
[1646979740282,3.7129274,2568.4,2568.3,0.04]
[1646979740482,0.47145146,2568.4,2568.2,0.0033755]
[1646979740681,0.97367,2568.2,2567.8,1.01350414]
[1646979740884,2.92113,2568.1,2567.8,1.01350414]
[1646979741124,3.22113,2568.1,2567.8,1.01350414]
[1646979741326,4.69258146,2568.1,2567.9,1.0]
[1646979741525,3.69258146,2568.1,2567.9,1.0]
[1646979741725,3.24129233,2568.0,2567.9,1.0]
[1646979741927,3.24129233,2568.0,2567.0,0.29]
[1646979741928,3.70329233,2568.0,2567.0,0.29]
[1646979742130,0.97375,2567.8,2567.0,0.04]
[1646979742529,0.9737,2567.9,2567.0,0.04]
[1646979742729,0.9737,2567.9,2567.3,0.00101556]
[1646979743732,0.9737,2567.9,2567.0,0.04]
[1646979743931,0.9737,2567.9,2567.5,0.00337648]
[1646979744332,0.00945146,2567.8,2567.5,0.00337648]
[1646979744973,0.00945146,2567.8,2567.0,0.04]
[1646979745174,0.00945146,2567.8,2567.5,0.00337642]
[1646979746075,0.00945146,2567.8,2567.0,0.04]
[1646979746475,0.00945146,2567.8,2567.5,0.00336798]
[1646979747279,0.00945146,2567.8,2567.0,0.04]
[1646979747781,0.00945146,2567.8,2567.5,0.00336798]
[1646979747981,0.05999739,2567.7,2567.5,0.00336798]
[1646979748384,0.00945146,2567.6,2567.5,0.00336798]
[1646979748621,0.97376,2567.5,2567.0,0.04]
[1646979748822,0.97376,2567.5,2567.1,0.01347419]
[1646979749726,0.97376,2567.5,2567.0,0.04]
[1646979749928,0.97376,2567.5,2567.2,0.00337034]
[1646979750925,0.97376,2567.5,2567.0,0.04]
[1646979751125,0.97376,2567.5,2567.2,0.00337027]
[1646979751530,0.00945146,2567.4,2567.2,0.00337027]
[1646979752131,0.00945146,2567.4,2567.0,4.01044996]
[1646979752385,0.00945146,2567.4,2567.2,0.00337034]
[1646979752780,0.00945146,2567.4,2567.3,0.06419634]
[1646979754580,0.00945146,2567.8,2567.3,3.56419634]
[1646979754781,0.00945146,2567.8,2567.4,0.06235279]
[1646979757123,0.00945146,2567.8,2567.5,0.00404399]
[1646979757727,1.9471,2568.0,2567.5,0.00404399]
[1646979757728,0.00945146,2567.9,2567.5,0.00404399]
[1646979758127,0.00945146,2567.9,2567.4,0.06235279]
[1646979758328,0.00945146,2567.9,2567.6,0.00404394]
[1646979759327,0.00945146,2567.9,2567.4,0.06235279]
[1646979759528,0.00945146,2567.9,2567.6,0.00404392]
[1646979760173,0.98299146,2567.9,2567.6,0.00404392]
[1646979760571,0.98299146,2567.9,2567.4,0.06235279]
[1646979760773,0.98299146,2567.9,2567.6,0.00404392]
[1646979761872,0.98299146,2567.9,2567.4,0.06235279]
[1646979762074,0.98299146,2567.9,2567.6,0.00371469]
[1646979762879,0.98299146,2567.9,2567.4,0.06235279]
[1646979763276,0.98299146,2567.9,2567.6,0.00371469]
[1646979764126,0.98299146,2567.9,2567.4,0.06235279]
[1646979764327,0.98299146,2567.9,2567.6,0.00371469]
[1646979765127,0.98173693,2567.9,2567.6,0.00371469]
[1646979765328,0.98173693,2567.9,2567.2,0.06667511]
[1646979765533,0.98173693,2567.9,2567.6,0.00328328]
[1646979766528,0.98173693,2567.9,2567.2,0.06667511]
[1646979766529,1.04323928,2567.9,2567.2,0.06667511]
[1646979766727,0.05215306,2567.8,2567.2,0.06667511]
[1646979766926,0.05215306,2567.8,2567.6,0.00328328]
[1646979767128,0.00945146,2567.7,2567.6,0.00328328]
[1646979767777,0.00945146,2567.7,2567.2,0.06667511]
[1646979767975,0.00945146,2567.7,2567.5,0.00328341]
[1646979768976,0.00945146,2567.7,2567.2,0.06667511]
[1646979769275,0.00945146,2567.7,2567.5,0.00338054]
[1646979770077,0.00945146,2567.7,2567.2,0.06667511]
[1646979770479,0.00945146,2567.7,2567.5,0.00338054]
[1646979771324,0.00945146,2567.7,2567.2,0.06667511]
[1646979771525,0.00945146,2567.7,2567.5,0.00338054]
[1646979772529,0.00945146,2567.7,2567.2,0.06667511]
[1646979772730,0.00945146,2567.7,2567.5,0.0033587]
[1646979773830,0.00945146,2567.7,2567.2,0.06667511]
[1646979774030,0.00945146,2567.7,2567.5,0.0033587]
[1646979774430,0.01561859,2567.6,2567.5,0.0033587]
[1646979774883,0.02507005,2567.6,2567.2,0.06667511]
[1646979775271,0.02507005,2567.6,2567.4,0.00335877]
[1646979776175,0.02507005,2567.6,2567.0,1.1883]
[1646979776176,0.97371,2567.5,2567.0,1.1883]
[1646979776576,0.97371,2567.5,2567.4,0.00336375]
[1646979777276,1.50990627,2567.5,2567.0,1.1883]
[1646979777780,2.48376627,2567.5,2567.3,0.00336381]
[1646979777980,0.00945146,2567.4,2567.3,0.00336381]
[1646979778628,0.98329146,2567.4,2567.0,1.1883]
[1646979778826,0.98329146,2567.4,2567.2,0.00336394]
[1646979779826,0.98329146,2567.4,2567.0,0.04]
[1646979780027,0.98329146,2567.4,2567.2,0.00336291]
[1646979782130,0.98329146,2567.4,2567.0,0.04]
[1646979782379,0.98329146,2567.4,2567.2,0.00336291]
[1646979783380,0.98329146,2567.4,2567.0,0.04]
[1646979783381,0.97393,2567.3,2567.0,0.04]
[1646979783580,0.97393,2567.3,2567.2,0.00101348]
[1646979784180,0.98338146,2567.3,2567.2,0.00101348]
[1646979784579,1.0143549,2567.3,2567.0,0.04]
[1646979784781,2.9624349,2567.3,2567.1,0.0010135]
[1646979785580,6.17894624,2567.3,2567.1,0.0010135]
[1646979785780,5.5,2567.2,2566.5,1.0]
[1646979785984,0.97417,2567.0,2566.7,0.01345515]
[1646979786225,11.12757991,2567.1,2566.7,0.01345515]
[1646979786226,5.48125924,2566.9,2566.7,0.01345515]
[1646979786428,1.63101,2566.9,2566.7,0.01345515]
[1646979786625,1.63101,2566.9,2566.3,0.3895]
[1646979786626,0.05894056,2566.6,2566.3,0.3895]
[1646979786827,0.05894056,2566.6,2565.9,0.00147264]
[1646979786828,0.9916512,2566.5,2565.9,0.00147264]
[1646979787124,0.05615998,2566.4,2565.6,0.00147264]
[1646979787324,0.05615998,2566.4,2565.5,1.1851]
[1646979787528,0.05615998,2566.4,2565.4,4.02775212]
[1646979787529,0.97448,2566.1,2565.4,4.02775212]
[1646979787827,0.0585296,2566.0,2565.4,4.02627948]
[1646979788931,0.0488618,2565.9,2565.4,4.02627948]
[1646979789327,0.0488618,2565.9,2565.2,1.1851]
[1646979789527,0.0488618,2565.9,2565.2,4.6851]
[1646979789727,1.0232018,2565.9,2565.2,4.6851]
[1646979789984,1.95780146,2566.4,2565.3,0.07338679]
[1646979790385,1.95780146,2566.4,2565.6,0.07924703]
[1646979790584,1.95780146,2566.4,2565.6,3.57924703]
[1646979790781,1.95780146,2566.4,2565.7,0.08019913]
[1646979790984,0.97421,2566.2,2565.7,0.08424597]
[1646979791383,0.00945146,2566.1,2565.7,0.08424597]
[1646979791881,0.00945146,2566.1,2565.7,0.08019913]
[1646979792081,0.00945146,2566.1,2565.8,0.00404682]
[1646979793087,0.00945146,2566.1,2565.9,1.01282019]
[1646979793293,0.00945146,2566.1,2566.0,4.95463597]
[1646979794338,5.146e-05,2566.1,2566.0,4.95463597]
[1646979794530,0.01527278,2566.4,2566.0,18.6709]
[1646979794725,0.00404447,2567.4,2566.2,12.5817959]
[1646979794925,0.00404447,2567.4,2566.4,0.46679664]
[1646979795126,0.00404447,2567.4,2566.3,3.5]
[1646979795127,0.00404447,2567.4,2566.6,0.45749918]
[1646979795326,0.00404447,2567.4,2566.8,1.36326]
[1646979795526,0.06081173,2567.7,2566.8,0.45655899]
[1646979795724,0.00392408,2567.4,2566.8,0.45655899]
[1646979796328,0.00392408,2567.4,2566.7,0.06760104]
[1646979796525,0.06081173,2567.7,2566.8,0.3897]
[1646979796726,0.06081173,2567.7,2566.8,0.06709704]
[1646979796931,0.0039243,2567.4,2566.8,0.06709704]
[1646979797126,1.9515643,2567.4,2566.8,0.06709704]
[1646979797581,1.9515643,2567.4,2566.7,0.92591588]
[1646979797780,1.94764,2567.4,2566.5,0.06392568]
[1646979797981,0.97382,2567.3,2566.5,0.06392568]
[1646979798180,0.97382,2567.3,2566.6,0.00367416]
[1646979798982,0.97382,2567.3,2566.5,0.06392568]
[1646979799183,0.97382,2567.3,2566.6,0.93789547]
[1646979799585,0.0536193,2567.2,2566.6,0.00326122]
[1646979800183,0.0536193,2567.2,2566.4,1.2109]
[1646979800482,0.0536193,2567.2,2566.6,0.00326122]
[1646979800883,2.0013293,2567.2,2566.6,0.00326122]
[1646979801321,2.0013293,2567.2,2566.4,0.08058846]
[1646979802022,0.04851763,2567.1,2566.3,3.80147264]
[1646979802227,0.04851763,2567.1,2566.3,3.8]
[1646979802427,0.04851763,2567.1,2566.1,10.2068737]
[1646979802728,0.04851763,2567.1,2566.1,6.7068737]
[1646979802930,0.04851763,2567.1,2566.6,0.0033563]
[1646979803127,0.34851763,2567.1,2566.6,0.0033563]
[1646979803727,0.34851763,2567.1,2566.2,0.00147264]
[1646979803930,0.34851763,2567.1,2566.1,7.56902775]
[1646979804130,1.94816,2566.9,2566.6,0.0033563]
[1646979804975,0.97408,2566.9,2566.3,0.06305288]
[1646979805376,0.97408,2566.9,2566.6,0.0033563]
[1646979806175,0.97408,2566.9,2566.3,0.06305288]
[1646979806375,0.97408,2566.9,2566.6,0.00333491]
[1646979807382,0.97408,2566.9,2566.3,0.06305288]
[1646979807579,0.97408,2566.9,2566.6,0.00333491]
[1646979808621,0.97408,2566.9,2566.3,0.06305288]
[1646979808822,0.97408,2566.9,2566.6,0.00333491]
[1646979809224,0.05244858,2566.7,2566.6,0.00333491]
[1646979809824,0.05244858,2566.7,2566.2,3.5]
[1646979810028,1.02642858,2566.7,2566.5,0.00333979]
[1646979810426,0.05244858,2566.7,2566.5,0.00333979]
[1646979810625,1.94816,2567.0,2566.5,0.00333979]
[1646979810824,0.05879254,2566.9,2566.5,0.00333979]
[1646979811026,1.03270254,2566.9,2566.1,0.07429818]
[1646979811226,10.88972,2567.3,2566.6,0.00333972]
[1646979811526,0.05920482,2567.1,2566.6,0.00333972]
[1646979811925,0.05920482,2567.1,2566.6,0.99613972]
[1646979812126,0.04984709,2567.4,2566.6,0.9928]
[1646979812383,0.04984709,2567.4,2566.7,3.5]
[1646979812578,0.05367081,2567.4,2566.7,3.5]
[1646979812973,0.05367081,2567.4,2566.6,0.00333972]
[1646979812974,1.02745081,2567.4,2566.6,0.00333972]